fUSD/lending_fUSD_20240115
["ID","MTS","AMOUNT","RATE_DAILY","PERIOD"]
[311680625,1705325782096,600.0,0.000218,7]
[311680626,1705325784192,900.0,0.000219,7]
[311680627,1705325784942,336.95365617,0.00022099,2]
[311680628,1705325785954,199.12636917,0.00022099,2]
[311680629,1705325786903,5330.96781737,0.00022099,2]
[311680630,1705325787085,158.58574214,0.00022099,2]
[311680631,1705325788043,155.0,0.00022099,2]
[311680632,1705325788395,155.0,0.00022099,2]
[311680633,1705325788940,9076.49861336,0.00022099,7]
[311680634,1705325790156,2900.37489177,0.00022099,2]
[311680635,1705325790426,839.11187085,0.00022095,2]
[311680636,1705325790471,242.35981074,0.00022099,2]
[311680637,1705325790570,5212.40118207,0.00022099,2]
[311680638,1705325790683,363.88428854,0.00022099,2]
[311680639,1705325791488,160.58264314,0.00022099,2]
[311680640,1705325792900,1767.25939778,0.00022098,2]
[311680641,1705325793226,229.48307305,0.00022099,2]
[311680642,1705325793685,529.04001639,0.00022098,2]
[311680643,1705325793834,504.68,0.00019339,2]
[311680644,1705325794053,504.68,0.00021603,2]
[311680646,1705325794416,162.12583632,0.00022098,2]
[311680647,1705325795634,215.39729316,0.00022099,2]
[311680648,1705325795913,2318.58071486,0.00022099,2]
[311680649,1705325796026,192.87,0.00021443,2]
[311680650,1705325796067,261.4995332,0.00022099,2]
[311680651,1705325796416,192.87,0.00021502,2]
[311680652,1705325796498,181.62975253,0.00022099,2]
[311680653,1705325796635,2452.61172856,0.00022099,2]
[311680654,1705325796667,192.87,0.0002156,2]
[311680655,1705325796908,192.87,0.00021619,2]
[311680656,1705325797119,192.87,0.00021678,2]
[311680657,1705325797236,200.52959996,0.00022099,2]
[311680658,1705325797348,192.87,0.00021737,2]
[311680659,1705325797548,527.64290254,0.00022099,2]
[311680660,1705325797586,192.87,0.00021796,2]
[311680661,1705325797677,1138.08552562,0.00022099,2]
[311680662,1705325797795,192.87,0.00021855,2]
[311680663,1705325798189,192.87,0.00021913,2]
[311680664,1705325798366,155.0,0.00022099,2]
[311680665,1705325798415,192.87,0.00021972,2]
[311680666,1705325798696,192.87,0.00022031,2]
[311680667,1705325798948,192.87,0.0002209,2]
[311680668,1705325799380,672066.95599948,0.00022099,2]
[311680669,1705325799952,198.31086308,0.00022099,2]
[311680670,1705325800258,155.0,0.00022099,2]
[311680671,1705325801537,158.58574214,0.00022099,2]
[311680672,1705325803120,335.22222583,0.00022099,2]
[311680673,1705325803178,42980.14567238,0.00022099,2]
[311680674,1705325803306,2900.37489177,0.00022099,2]
[311680675,1705325804218,196.64538108,0.00022089,2]
[311680676,1705325804310,5212.40118207,0.00022099,2]
[311680677,1705325804489,155.0,0.00022099,2]
[311680678,1705325804817,2136.64432384,0.00022099,2]
[311680679,1705325805925,210.59253827,0.00022099,2]
[311680680,1705325805955,19004.51696146,0.00022099,2]
[311680681,1705325806026,155.31998547,0.00022099,2]
[311680682,1705325806123,2778.97771353,0.00022099,2]
[311680683,1705325806219,220.95063616,0.00022099,2]
[311680684,1705325806898,1767.25939778,0.00022099,2]
[311680685,1705325806956,7628.60385997,0.00022099,7]
[311680686,1705325807751,310.01499725,0.00022099,2]
[311680687,1705325808027,10520.01750502,0.00022099,2]
[311680688,1705325808067,22314.12582375,0.00022096,2]
[311680689,1705325808853,155.0,0.00022099,2]
[311680690,1705325809031,4907.34560237,0.00022099,2]
[311680691,1705325809083,33740.10814159,0.00022099,2]
[311680692,1705325809447,260.05395446,0.00022089,2]
[311680693,1705325809528,160.58264314,0.00022099,2]
[311680694,1705325809569,697.51118737,0.00022099,2]
[311680695,1705325809927,384.4257574,0.00022099,2]
[311680696,1705325810388,1370.98811656,0.00022099,2]
[311680697,1705325810924,248.61163847,0.00022099,2]
[311680698,1705325812049,171.79656324,0.00022099,2]
[311680699,1705325812264,415.75086747,0.00022099,2]
[311680700,1705325812366,308.66059738,0.00022099,2]
[311680701,1705325812466,251.76535352,0.00022099,2]
[311680702,1705325812625,155.0,0.00022099,2]
[311680703,1705325812707,363.88428854,0.00022099,2]
[311680704,1705325813052,404.10391545,0.00022099,2]
[311680705,1705325813273,177.75042243,0.00022099,2]
[311680706,1705325813304,155.0,0.00022099,2]
[311680707,1705325813849,542.62714348,0.00022099,2]
[311680708,1705325814046,155.0,0.00022099,2]
[311680709,1705325814078,376.69878763,0.00022099,2]
[311680710,1705325814110,5098.54400419,0.00022099,2]
[311680711,1705325814855,155.37655705,0.00022099,2]
[311680712,1705325814909,286.52776858,0.00022099,2]
[311680713,1705325814976,522.06369342,0.00022099,2]
[311680714,1705325815318,558.52259903,0.00022099,2]
[311680715,1705325815369,198261.58688108,0.00022099,2]
[311680716,1705325815700,529.04001639,0.00022099,2]
[311680717,1705325815933,2218.9169221,0.00022099,2]
[311680718,1705325816452,155.0,0.00022099,2]
[311680719,1705325816624,2614.42417695,0.00022099,2]
[311680720,1705325816717,1202.95567145,0.00022099,2]
[311680721,1705325816758,10600.28864186,0.00022099,2]
[311680722,1705325816791,252.83161781,0.00022099,2]
[311680723,1705325816977,155.0,0.00022099,2]
[311680724,1705325817193,10550.48774312,0.00022099,2]
[311680725,1705325817396,1255.53256283,0.00022099,2]
[311680726,1705325817663,115393.94681134,0.00022099,2]
[311680727,1705325817693,324.82425038,0.00022099,2]
[311680728,1705325818850,2136.64432384,0.00022099,2]
[311680729,1705325819118,158.84147577,0.00022099,2]
[311680730,1705325819152,940.13112153,0.00022099,2]
[311680731,1705325819708,2144.43375818,0.00022099,2]
[311680732,1705325820116,288.80634248,0.00022099,2]
[311680733,1705325820150,191.905541,0.00022099,2]
[311680734,1705325820686,279.18625117,0.00022098,2]
[311680735,1705325821240,386.76750307,0.00022098,2]
[311680736,1705325821342,2699.11928497,0.00022099,2]
[311680737,1705325821593,155.0,0.00022099,2]
[311680738,1705325822944,10520.01750502,0.00022099,2]
[311680739,1705325822995,473.02074418,0.00022098,2]
[311680740,1705325823128,220.95063616,0.00022099,2]
[311680741,1705325823163,19004.51696146,0.00022099,2]
[311680742,1705325823338,3043.00044003,0.00022098,2]
[311680743,1705325823373,1227.4479499,0.00022098,2]
[311680744,1705325823508,33740.10814159,0.00022099,2]
[311680745,1705325823767,244.79837354,0.00022098,2]
[311680746,1705325823814,170.9079284,0.00022099,2]
[311680747,1705325823862,310.01499725,0.00022099,2]
[311680748,1705325824205,196.64538108,0.00022099,2]
[311680749,1705325824242,381.90524219,0.00022099,2]
[311680750,1705325824272,501.20034286,0.00022099,2]
[311680751,1705325824406,163.08764278,0.00022099,2]
[311680752,1705325824644,250.77996364,0.00022099,2]
[311680753,1705325824876,1007.4584688,0.00022099,2]
[311680754,1705325825203,263.27381778,0.00022098,2]
[311680755,1705325825624,217.85391291,0.00022099,2]
[311680756,1705325825820,4633.79492474,0.00022099,2]
[311680757,1705325826022,250.0,0.00021267,2]
[311680758,1705325826052,233.07751996,0.00022099,2]
[311680759,1705325826388,1378.13382788,0.00022099,2]
[311680760,1705325826631,155.47575455,0.00022099,2]
[311680761,1705325826663,155.0,0.00022099,2]
[311680762,1705325826706,2945.7151429,0.00022099,2]
[311680763,1705325826738,419.33924047,0.00022097,2]
[311680764,1705325826823,183.64274751,0.00022099,2]
[311680765,1705325827096,3857.52457021,0.00022099,2]
[311680766,1705325827685,267.752036,0.00022099,2]
[311680767,1705325827719,1368.88700179,0.00022097,2]
[311680768,1705325827775,523.53951962,0.00022099,2]
[311680769,1705325827930,2138.27006728,0.00022099,2]
[311680770,1705325828110,5098.54400419,0.00022099,2]
[311680771,1705325828197,2618.74812066,0.00022099,2]
[311680772,1705325828714,371.00930961,0.00022097,2]
[311680773,1705325829010,404.74703079,0.00022099,2]
[311680774,1705325829275,260.05395446,0.00022099,2]
[311680775,1705325829430,155.0,0.00022097,2]
[311680776,1705325829468,171.79656324,0.00022099,2]
[311680777,1705325829688,155.0,0.00022097,2]
[311680778,1705325829929,384.4257574,0.00022099,2]
[311680779,1705325829965,4623.99524011,0.00022099,2]
[311680780,1705325830051,195.20540532,0.00022099,2]
[311680781,1705325830081,515.93814053,0.00022099,2]
[311680782,1705325830423,314.11964049,0.00022097,2]
[311680783,1705325830492,204.29770003,0.00022099,2]
[311680784,1705325830922,3623.34664088,0.00022099,2]
[311680785,1705325830958,155.92659979,0.00022099,2]
[311680786,1705325831281,177.75042243,0.00022099,2]
[311680787,1705325831354,219.50413711,0.00022099,2]
[311680788,1705325831389,558.52259903,0.00021989,2]
[311680789,1705325831653,324.82425038,0.00022099,2]
[311680790,1705325831708,527.30798493,0.00022099,2]
[311680791,1705325832140,7779.55747498,0.00022099,2]
[311680792,1705325832189,288.80634248,0.00022099,2]
[311680793,1705325832420,286.52776858,0.00022099,2]
[311680794,1705325832614,2614.42417695,0.00022099,2]
[311680795,1705325832739,252.83161781,0.00022099,2]
[311680796,1705325833913,196.8387694,0.00022099,2]
[311680797,1705325833953,940.13112153,0.00022099,2]
[311680798,1705325834000,203.17659496,0.00022099,2]
[311680799,1705325834178,581.63632496,0.00022099,2]
[311680800,1705325834321,4701.25313551,0.00022099,2]
[311680801,1705325834358,376.37959961,0.00022099,2]
[311680802,1705325834791,228.6818623,0.00022099,2]
[311680803,1705325835132,1889.25604781,0.00022099,2]
[311680804,1705325835379,600.66184811,0.00022099,2]
[311680805,1705325835409,368.69145285,0.00022099,2]
[311680806,1705325835580,155.0,0.00022099,2]
[311680807,1705325835761,388.70476161,0.00022099,2]
[311680808,1705325835935,157.48191776,0.00022099,2]
[311680809,1705325836078,473.02074418,0.00022099,2]
[311680810,1705325836669,400.34058814,0.00022099,2]
[311680811,1705325836819,2136.64432384,0.00022099,2]
[311680812,1705325837232,386.73340549,0.00022099,2]
[311680813,1705325837398,1262.88345142,0.00022099,2]
[311680814,1705325837636,73369.41648263,0.00022099,2]
[311680815,1705325837678,763.44468831,0.00022099,2]
[311680816,1705325837817,2144.43375818,0.00022099,2]
[311680817,1705325838256,158.7139359,0.00022099,2]
[311680818,1705325838430,2857.06325076,0.00022099,2]
[311680819,1705325838537,202.57156383,0.00022099,2]
[311680820,1705325838609,1227.4479499,0.00022099,2]
[311680821,1705325838754,357.2924601,0.00022099,2]
[311680822,1705325838950,30578.41107267,0.00022099,2]
[311680823,1705325839368,10550.48774312,0.00022099,2]
[311680824,1705325839404,263.27381778,0.00022099,2]
[311680825,1705325840077,233.07751996,0.00022099,2]
[311680826,1705325840225,220.95063616,0.00022098,2]
[311680827,1705325840687,515.1222798,0.00022087,2]
[311680828,1705325841793,310.01499725,0.00022099,2]
[311680829,1705325841956,2230.4268073,0.00022099,2]
[311680830,1705325842014,2138.27006728,0.00022099,2]
[311680831,1705325842206,281.71754087,0.00022099,2]
[311680832,1705325842239,2025.73083617,0.00022098,2]
[311680833,1705325842274,501.20034286,0.00022099,2]
[311680834,1705325842345,4623.99524011,0.00022099,2]
[311680835,1705325842402,3043.00044003,0.00022099,2]
[311680836,1705325842683,2945.7151429,0.00022099,2]
[311680837,1705325843077,568.52724502,0.00022099,2]
[311680838,1705325843439,401.98,0.00021271,2]
[311680839,1705325843590,217.85391291,0.00022099,2]
[311680840,1705325844637,4974.38580149,0.00022098,2]
[311680841,1705325844702,523.53951962,0.00022099,2]
[311680842,1705325844773,4633.79492474,0.00022098,2]
[311680843,1705325844840,314.11964049,0.00022099,2]
[311680844,1705325844962,371.00930961,0.00022099,2]
[311680845,1705325845698,1708.36719999,0.00022098,2]
[311680846,1705325845730,191.41600995,0.00022099,2]
[311680847,1705325845780,264.62721512,0.00022099,2]
[311680848,1705325845838,880.13097739,0.00022099,2]
[311680849,1705325845953,427.25837445,0.00022099,2]
[311680850,1705325846008,351.48237932,0.00022099,2]
[311680851,1705325846143,6533.28361419,0.00022099,2]
[311680852,1705325846410,314.38631611,0.00022099,2]
[311680853,1705325846924,3623.34664088,0.00022099,2]
[311680854,1705325847021,265.57321894,0.00022099,2]
[311680855,1705325847348,558.52259903,0.00022099,2]
[311680856,1705325847423,155.0,0.00022099,2]
[311680857,1705325848406,20766.45309461,0.0002209,2]
[311680858,1705325848601,307.73417923,0.00022099,2]
[311680859,1705325849166,940.13112153,0.00022099,2]
[311680860,1705325849211,167.08344621,0.00022099,2]
[311680861,1705325849656,324.82425038,0.00022099,2]
[311680862,1705325849713,155.0,0.00022099,2]
[311680863,1705325850182,288.21212112,0.00022099,2]
[311680864,1705325850497,300.26783607,0.00022099,2]
[311680865,1705325850628,397.86168126,0.00022099,2]
[311680866,1705325851261,202.86220506,0.00022099,2]
[311680867,1705325851300,177.75042243,0.00022099,2]
[311680868,1705325852618,2063.88705126,0.00022099,2]
[311680869,1705325853718,640.646683,0.00022099,2]
[311680870,1705325854425,202.57156383,0.00022099,2]
[311680871,1705325855240,252.83161781,0.00022099,2]
[311680872,1705325855768,161.14454713,0.00022099,2]
[311680873,1705325856073,473.07517035,0.00022099,2]
[311680874,1705325857313,7547.68607152,0.00022099,2]
[311680875,1705325857396,262.90098657,0.00022099,2]
[311680876,1705325857775,545.51076896,0.00022099,2]
[311680877,1705325858281,582.33197717,0.00022099,2]
[311680878,1705325858916,1818.53174161,0.00022099,2]
[311680879,1705325859321,175.82734822,0.00022099,2]
[311680880,1705325860083,174.19,0.0002128,2]
[311680881,1705325860401,3043.00044003,0.00022099,2]
[311680882,1705325860689,2945.7151429,0.00022099,2]
[311680883,1705325861195,263.27381778,0.00022099,2]
[311680884,1705325861758,376.57348557,0.00022099,2]
[311680885,1705325861936,2138.27006728,0.00022099,2]
[311680886,1705325862272,437.17935971,0.00022099,2]
[311680887,1705325862569,846.67974347,0.00022099,2]
[311680888,1705325864220,219.18131833,0.00022099,2]
[311680889,1705325864444,367.11219371,0.00022099,2]
[311680890,1705325864829,2107.36681277,0.00022099,2]
[311680891,1705325864961,2225.6348465,0.00022099,2]
[311680892,1705325866430,217.85391291,0.00022099,2]
[311680893,1705325866746,215.38675334,0.00022099,2]
[311680894,1705325867015,347.62,0.00021289,2]
[311680895,1705325867339,374.56626889,0.00021989,2]
[311680896,1705325867659,291.71173519,0.00022099,2]
[311680897,1705325867698,155.5410687,0.00022099,2]
[311680898,1705325868368,4623.99524011,0.00022099,2]
[311680899,1705325869272,319.72789873,0.00022098,2]
[311680900,1705325870867,371.00930961,0.00022099,2]
[311680901,1705325871157,303.85292119,0.00022099,2]
[311680902,1705325871458,307.21829058,0.00022099,2]
[311680903,1705325871514,5178.0,0.00021297,2]
[311680904,1705325872743,300.30476874,0.00022099,2]
[311680905,1705325874131,4270.25221425,0.00022099,2]
[311680906,1705325874495,203.49569891,0.00022099,2]
[311680907,1705325877110,583.12437004,0.00022099,2]
[311680908,1705325877874,908.36027639,0.00022002,2]
[311680909,1705325877933,1241.16281299,0.00022099,2]
[311680910,1705325878634,3043.00044003,0.00022099,2]
[311680911,1705325879074,908.36027636,0.00022092,2]
[311680912,1705325882359,473.61,0.00021431,2]
[311680913,1705325882574,473.61,0.00021543,2]
[311680914,1705325882807,473.61,0.00021656,2]
[311680915,1705325883105,473.61,0.00021769,2]
[311680916,1705325883304,473.61,0.00021882,2]
[311680917,1705325883510,473.61,0.00021995,2]
[311680918,1705325886361,918.7236218,0.00022099,2]
[311680919,1705325886791,261.53846784,0.00022099,2]
[311680920,1705325887683,263.27381778,0.00022099,2]
[311680921,1705325889428,2557.5931,0.00022025,2]
[311680922,1705325889596,292.29530641,0.00022099,2]
[311680923,1705325896436,3043.00044003,0.00022099,2]
[311680924,1705325901829,210.7268,0.00022025,2]
[311680925,1705325905203,158.29145901,0.00022099,2]
[311680926,1705325913952,201.0,0.00021581,2]
[311680927,1705325914439,3043.00044003,0.00022099,2]
[311680928,1705325922489,200.0,0.00021274,2]
[311680929,1705325931181,3043.00044003,0.00022099,2]
[311680930,1705325935925,10000.0,0.00021918,2]
[311680931,1705325953096,531.86401415,0.00022099,2]
[311680932,1705325991709,522.26,0.00021275,2]
[311680933,1705325994043,1245.56,0.00021275,2]
[311680934,1705325994746,151.0,0.00027284,120]
[311680935,1705325995545,302.7867588,0.00022002,2]
[311680936,1705325996927,302.78675878,0.00022065,2]
[311680937,1705326013462,2000.0,0.0002127,2]
[311680938,1705326017007,159.1,0.00021472,2]
[311680939,1705326025088,177.91,0.00021257,2]
[311680940,1705326047686,243196.2248,0.00022,2]
[311680941,1705326088716,1033.12,0.00021249,2]
[311680942,1705326100257,685.41,0.00021246,2]
[311680943,1705326118667,11743.0146,0.00022025,2]
[311680944,1705326119528,853.22,0.00021408,2]
[311680945,1705326122474,150.0,0.00022099,2]
[311680946,1705326124974,200.0,0.00021412,2]
[311680947,1705326139274,183.28063339,0.00022,2]
[311680948,1705326141504,253935.0178,0.00022025,2]
[311680949,1705326147073,770.53928734,0.00022093,2]
[311680950,1705326189968,171.97,0.00021295,2]
[311680951,1705326199281,23900.0,0.00021295,2]
[311680952,1705326210709,59090.0,0.00022057,2]
[311680954,1705326233238,484.0,0.0001937,2]
[311680955,1705326233442,484.0,0.00021634,2]
[311680956,1705326237337,154.77,0.00021415,2]
[311680957,1705326237650,154.77,0.00021526,2]
[311680958,1705326237761,154.77,0.00021638,2]
[311680959,1705326238045,154.77,0.0002175,2]
[311680960,1705326238519,154.77,0.00021861,2]
[311680961,1705326238739,154.77,0.00021973,2]
[311680962,1705326239140,154.77,0.00022084,2]
[311680963,1705326245425,176.2,0.00021798,2]
[311680964,1705326251826,812.08455662,0.00021798,2]
[311680965,1705326254717,256.71,0.00021798,2]
[311680966,1705326256004,256.71,0.00021935,2]
[311680967,1705326257673,256.71,0.00022072,2]
[311680968,1705326273850,201.0,0.00021191,2]
[311680969,1705326274141,201.0,0.00021817,2]
[311680970,1705326279609,150.0,0.00021798,2]
[311680971,1705326283971,1056454.86622916,0.00022099,2]
[311680972,1705326285857,920.34,0.00021888,2]
[311680973,1705326297677,678.41,0.00021906,2]
[311680974,1705326300182,303.92,0.00021912,2]
[311680975,1705326302427,150.0,0.00022099,2]
[311680976,1705326303343,894554.59270947,0.00022099,2]
[311680977,1705326307203,597434.3909,0.00022,2]
[311680978,1705326320969,319.74021927,0.00022,2]
[311680979,1705326353669,200.0,0.00022008,2]
[311680980,1705326371075,671.28949668,0.00022094,2]
[311680981,1705326379343,250.0,0.00021969,2]
[311680982,1705326394554,230.05,0.00021955,2]
[311680983,1705326429614,260.78,0.00021955,2]
[311680984,1705326458384,2000.0,0.00021935,2]
[311680985,1705326482367,150.0,0.00022099,2]
[311680986,1705326482491,150.0,0.00022099,2]
[311680987,1705326512832,610.5,0.00021215,2]
[311680988,1705326537391,151.0,0.00027373,120]
[311680989,1705326577089,10000.0,0.00022036,2]
[311680994,1705326611038,250.0,0.000205,2]
[311681000,1705326631958,-251.37315364,0.000221,2]
[311681001,1705326631968,-244.13617966,0.00022102,2]
[311681002,1705326631978,-473.61,0.00022107,2]
[311681003,1705326631994,-207.70456448,0.00022126,2]
[311681004,1705326632003,-155.0,0.00022126,2]
[311681005,1705326632013,-155.0,0.00022126,2]
[311681006,1705326632023,-3935.89563662,0.00022126,2]
[311681007,1705326632033,-303.57403311,0.00022126,2]
[311681008,1705326632043,-319.74021921,0.00022153,2]
[311681009,1705326632054,-416.8858,0.00022173,2]
[311681010,1705326632064,-161.16,0.00022174,2]
[311681011,1705326632074,-155.17336466,0.00022192,2]
[311681012,1705326632089,-156.87479774,0.00022192,2]
[311681013,1705326632102,-285.0397229,0.00022192,2]
[311681014,1705326632112,-301.95215137,0.00022192,2]
[311681015,1705326632122,-445.36250617,0.00022192,2]
[311681016,1705326632131,-473.97561772,0.00022193,2]
[311681017,1705326632142,-301.00675309,0.00022193,2]
[311681018,1705326632152,-4268.31,0.00022193,2]
[311681019,1705326632162,-2809.44834098,0.00022194,2]
[311681020,1705326632172,-1533.77,0.00022194,2]
[311681021,1705326632190,-325.17,0.00022194,2]
[311681022,1705326632200,-499.99,0.00022194,2]
[311681023,1705326632209,-299.99,0.00022194,7]
[311681024,1705326632219,-154.77,0.00022196,2]
[311681025,1705326632228,-255.42484355,0.00022209,2]
[311681026,1705326632240,-1.28515645,0.00022209,2]
[311681028,1705326632249,-986.89395439,0.00022213,2]
[311681030,1705326632258,-986.89395438,0.00022213,2]
[311681031,1705326632267,-473.61,0.0002222,2]
[311681032,1705326632276,-1045.11340217,0.00022227,2]
[311681033,1705326632286,-286.8861033,0.00022227,2]
[311681034,1705326632295,-160.54264898,0.00022227,2]
[311681035,1705326632304,-171.26660101,0.00022228,2]
[311681036,1705326632313,-155.0,0.00022271,2]
[311681037,1705326632323,-625.30525603,0.00022271,2]
[311681038,1705326632332,-341.78817649,0.00022271,2]
[311681039,1705326632342,-403.0307447,0.00022271,2]
[311681040,1705326632351,-159.1,0.0002228,2]
[311681041,1705326632361,-858.913,0.00022281,2]
[311681042,1705326632370,-319.74021921,0.00022305,2]
[311681043,1705326632380,-154.77,0.00022308,2]
[311681044,1705326632389,-473.61,0.00022333,2]
[311681045,1705326632399,-176.2,0.00022346,2]
[311681046,1705326632408,-256.71,0.00022346,2]
[311681047,1705326632418,-318.525335,0.00022374,2]
[311681048,1705326632427,-1066.23679716,0.00022379,2]
[311681049,1705326632440,-287.586,0.00022379,2]
[311681050,1705326632465,-1148.99779681,0.00022379,2]
[311681051,1705326632475,-158.21108344,0.00022379,2]
[311681052,1705326632486,-163.88168135,0.00022379,2]
[311681053,1705326632496,-6276.49137191,0.0002238,2]
[311681054,1705326632507,-564.44970192,0.00022385,2]
[311681055,1705326632517,-156.77132149,0.00022388,2]
[311681056,1705326632528,-523.75608307,0.00022388,2]
[311681057,1705326632538,-363.56577485,0.00022388,2]
[311681058,1705326632549,-154.77,0.00022419,2]
[311681059,1705326632559,-473.61,0.00022446,2]
[311681060,1705326632569,-303.4657073,0.00022457,2]
[311681061,1705326632578,-319.74021921,0.00022458,2]
[311681062,1705326632588,-256.71,0.00022483,2]
[311681063,1705326632597,-19119.1455636,0.000225,2]
[311681064,1705326632606,-154.77,0.00022531,2]
[311681065,1705326632616,-473.61,0.00022559,2]
[311681066,1705326632626,-155.0,0.0002261,2]
[311681067,1705326632636,-319.74021921,0.00022611,2]
[311681068,1705326632645,-256.71,0.0002262,2]
[311681069,1705326632655,-159.28,0.00022658,2]
[311681070,1705326632664,-473.61,0.00022671,2]
[311681071,1705326632673,-214.34577674,0.00022699,2]
[311681072,1705326632684,-256.71,0.00022757,2]
[311681073,1705326632693,-319.74021921,0.00022763,2]
[311681074,1705326632702,-473.61,0.00022784,2]
[311681075,1705326632711,-12233.40972694,0.000228,2]
[311681076,1705326632720,-920.34,0.00022867,2]
[311681077,1705326632729,-180.42886258,0.00022894,2]
[311681078,1705326632738,-256.71,0.00022894,2]
[311681079,1705326632747,-473.61,0.00022897,2]
[311681080,1705326632759,-277.49570937,0.000229,2]
[311681081,1705326632769,-277.49570885,0.000229,2]
[311681082,1705326632779,-277.49570885,0.000229,2]
[311681083,1705326632788,-319.74021921,0.00022916,2]
[311681084,1705326632798,-277.49570885,0.00022965,2]
[311681085,1705326632811,-22314.12582372,0.00022987,2]
[311681086,1705326632820,-150.0,0.00023,2]
[311681087,1705326632830,-473.61,0.0002301,2]
[311681089,1705326632840,-256.71,0.00023031,2]
[311681091,1705326632849,-500.0,0.00023041,2]
[311681093,1705326632859,-319.74021921,0.00023068,2]
[311681095,1705326632869,-159.1,0.00023088,2]
[311681097,1705326632878,-473.61,0.00023123,2]
[311681099,1705326632888,-281.95610779,0.00023168,2]
[311681101,1705326632898,-150.0,0.00023168,2]
[311681103,1705326632911,-277.49570885,0.0002322,2]
[311681105,1705326632920,-319.74021921,0.00023221,2]
[311681107,1705326632930,-473.61,0.00023235,2]
[311681109,1705326632939,-473.61,0.00023348,2]
[311681111,1705326632950,-319.74021921,0.00023374,2]
[311681113,1705326632959,-150.0,0.00023405,2]
[311681115,1705326632968,-473.61,0.00023461,2]
[311681117,1705326632977,-277.49570885,0.00023475,2]
[311681119,1705326632986,-319.74021921,0.00023526,2]
[311681121,1705326632997,-473.61,0.00023574,2]
[311681122,1705326633006,-500.0,0.00023581,2]
[311681123,1705326633015,-319.74021921,0.00023679,2]
[311681124,1705326633024,-277.49570885,0.0002373,2]
[311681125,1705326633034,-29.83529667,0.00023832,2]
[311681126,1705326633063,-289.90492254,0.00023832,2]
[311681127,1705326633072,-920.34,0.00023845,2]
[311681128,1705326633081,-158.12,0.00023861,2]
[311681129,1705326633090,-22314.12582372,0.00023879,2]
[311681130,1705326633099,-159.1,0.00023896,2]
[311681131,1705326633108,-484.0,0.00023898,2]
[311681132,1705326633116,-401.98,0.0002393,2]
[311681133,1705326633125,-319.74021921,0.00023984,2]
[311681134,1705326633134,-277.49570885,0.00023985,2]
[311681135,1705326633143,-431.27928573,0.00024,2]
[311681136,1705326633152,-201.0123456,0.00024,2]
[311681137,1705326633162,-3446.0,0.00024,2]
[311681138,1705326633171,-490.18871784,0.00024022,2]
[311681139,1705326633181,-36448.0,0.000241,2]
[311681140,1705326633191,-500.0,0.00024122,2]
[311681141,1705326633200,-319.74021921,0.00024137,2]
[311681142,1705326633209,-277.49570885,0.0002424,2]
[311681143,1705326633218,-161.16,0.0002426,2]
[311681144,1705326633227,-319.74021921,0.00024289,2]
[311681145,1705326633237,-167.0,0.00024297,2]
[311681146,1705326633247,-167.0,0.00024297,2]
[311681147,1705326633256,-490.18871774,0.00024308,2]
[311681148,1705326633266,-158.12,0.0002436,2]
[311681149,1705326633276,-319.74021921,0.00024442,2]
[311681150,1705326633286,-277.49570885,0.00024496,2]
[311681151,1705326633295,-160.44225437,0.00024538,2]
[311681152,1705326633305,-319.74021921,0.00024595,2]
[311681153,1705326633315,-678.41,0.00024644,2]
[311681154,1705326633324,-250.0,0.00024658,2]